[Event "*** SCC Grand Prix: Titled Tuesday Blitz"]
[Site "Chess.com"]
[Date "2020.07.07"]
[Round "2"]
[White "XiaoKangZhong"]
[Black "Vandros57"]
[Result "1-0"]
[WhiteElo "2411"]
[BlackElo "2124"]
[TimeControl "180+1"]
[EndTime "10:17:49 PDT"]
[Termination "XiaoKangZhong won on time"]

1. e4 {[%clk 0:03:00.9]} 1... c5 {[%clk 0:02:59]} 2. c3 {[%clk 0:03:00.1]} 2...
d5 {[%clk 0:02:57.7]} 3. exd5 {[%clk 0:03:00.1]} 3... Qxd5 {[%clk 0:02:57]} 4.
d4 {[%clk 0:03:00.4]} 4... Nf6 {[%clk 0:02:55]} 5. Nf3 {[%clk 0:03:00.1]} 5...
Bg4 {[%clk 0:02:53.3]} 6. Be2 {[%clk 0:03:00]} 6... e6 {[%clk 0:02:51.5]} 7. h3
{[%clk 0:02:57.8]} 7... Bh5 {[%clk 0:02:49.6]} 8. Be3 {[%clk 0:02:57.2]} 8...
cxd4 {[%clk 0:02:47.1]} 9. cxd4 {[%clk 0:02:56.5]} 9... Nc6 {[%clk 0:02:41.1]}
10. Nc3 {[%clk 0:02:56]} 10... Qa5 {[%clk 0:02:34.4]} 11. O-O {[%clk 0:02:41.5]}
11... Bd6 {[%clk 0:02:28.9]} 12. a3 {[%clk 0:02:29.3]} 12... a6 {[%clk
0:02:16.3]} 13. b4 {[%clk 0:02:28.7]} 13... Qc7 {[%clk 0:02:13.2]} 14. b5 {[%clk
0:02:27.3]} 14... Ne7 {[%clk 0:02:05.7]} 15. Qb3 {[%clk 0:02:18.3]} 15... O-O
{[%clk 0:02:00.8]} 16. Rac1 {[%clk 0:02:14.9]} 16... Qd8 {[%clk 0:01:36.8]} 17.
Bg5 {[%clk 0:02:03.1]} 17... Ned5 {[%clk 0:01:25.3]} 18. Nxd5 {[%clk 0:02:00.3]}
18... exd5 {[%clk 0:01:24.1]} 19. a4 {[%clk 0:01:57.1]} 19... Re8 {[%clk
0:01:18.7]} 20. Rfe1 {[%clk 0:01:52.9]} 20... Be7 {[%clk 0:01:07.6]} 21. Ne5
{[%clk 0:01:49.4]} 21... Bxe2 {[%clk 0:01:05.8]} 22. Rxe2 {[%clk 0:01:49.3]}
22... Ne4 {[%clk 0:00:53.3]} 23. Bxe7 {[%clk 0:01:45.2]} 23... Rxe7 {[%clk
0:00:45.8]} 24. Rec2 {[%clk 0:01:42]} 24... f6 {[%clk 0:00:33.9]} 25. Nd3 {[%clk
0:01:38.3]} 25... axb5 {[%clk 0:00:30.2]} 26. axb5 {[%clk 0:01:37.9]} 26... Qd6
{[%clk 0:00:17.9]} 27. Nc5 {[%clk 0:01:29.8]} 27... b6 {[%clk 0:00:14.1]} 28.
Na4 {[%clk 0:01:20.5]} 28... h6 {[%clk 0:00:08.7]} 29. Rc8+ {[%clk 0:01:17.3]}
29... Rxc8 {[%clk 0:00:07.6]} 30. Rxc8+ {[%clk 0:01:18.2]} 30... Kh7 {[%clk
0:00:07.2]} 31. Rc6 {[%clk 0:01:18.7]} 31... Qf4 {[%clk 0:00:05.9]} 32. Qf3
{[%clk 0:01:01.4]} 32... Qxf3 {[%clk 0:00:05]} 33. gxf3 {[%clk 0:01:02.3]} 33...
Nd2 {[%clk 0:00:04.8]} 34. Kg2 {[%clk 0:00:59.3]} 34... Re1 {[%clk 0:00:04]} 35.
Rxb6 {[%clk 0:00:58.5]} 35... Rd1 {[%clk 0:00:02.9]} 36. Nc3 {[%clk 0:00:55.2]}
36... Rc1 {[%clk 0:00:01.8]} 37. Nxd5 {[%clk 0:00:53.9]} 1-0

[Event "*** SCC Grand Prix: Titled Tuesday Blitz"]
[Site "Chess.com"]
[Date "2020.07.07"]
[Round "2"]
[White "Rodchenkov_Vitalij"]
[Black "grzechu96"]
[Result "0-1"]
[WhiteElo "2365"]
[BlackElo "2655"]
[TimeControl "180+1"]
[EndTime "10:17:50 PDT"]
[Termination "grzechu96 won by resignation"]

1. d4 {[%clk 0:02:50.3]} 1... d5 {[%clk 0:02:59.7]} 2. Nf3 {[%clk 0:02:47.7]}
2... Nf6 {[%clk 0:02:59.4]} 3. c4 {[%clk 0:02:47.5]} 3... c6 {[%clk 0:02:59.1]}
4. e3 {[%clk 0:02:47]} 4... e6 {[%clk 0:02:58.8]} 5. b3 {[%clk 0:02:45.9]} 5...
Ne4 {[%clk 0:02:56.4]} 6. Bb2 {[%clk 0:02:40.1]} 6... Bb4+ {[%clk 0:02:56.1]} 7.
Nbd2 {[%clk 0:02:39.6]} 7... Qf6 {[%clk 0:02:56.4]} 8. Qe2 {[%clk 0:02:03.7]}
8... O-O {[%clk 0:02:26.5]} 9. a3 {[%clk 0:01:57.9]} 9... Nxd2 {[%clk
0:02:08.4]} 10. axb4 {[%clk 0:01:38.7]} 10... Ne4 {[%clk 0:01:36.1]} 11. Ne5
{[%clk 0:01:16.3]} 11... Nd7 {[%clk 0:01:29.7]} 12. Qc2 {[%clk 0:00:55.4]} 12...
Nxe5 {[%clk 0:01:11.2]} 13. dxe5 {[%clk 0:00:54.9]} 13... Qe7 {[%clk 0:01:12]}
14. Bc3 {[%clk 0:00:46.3]} 14... b6 {[%clk 0:00:51.5]} 15. Bd3 {[%clk
0:00:43.8]} 15... Nxc3 {[%clk 0:00:41.5]} 16. Qxc3 {[%clk 0:00:43.5]} 16... Bb7
{[%clk 0:00:41.9]} 17. c5 {[%clk 0:00:33.1]} 17... a5 {[%clk 0:00:37.4]} 18.
bxa5 {[%clk 0:00:27.5]} 18... bxc5 {[%clk 0:00:12.5]} 19. O-O {[%clk 0:00:24.6]}
19... Ba6 {[%clk 0:00:10.8]} 20. Bxa6 {[%clk 0:00:22.2]} 20... Rxa6 {[%clk
0:00:11.7]} 21. Rfc1 {[%clk 0:00:22.8]} 21... Rb8 {[%clk 0:00:12]} 22. Qxc5
{[%clk 0:00:21.8]} 22... Qxc5 {[%clk 0:00:12.9]} 23. Rxc5 {[%clk 0:00:21.6]}
23... Rxb3 {[%clk 0:00:13.6]} 24. Rac1 {[%clk 0:00:20.7]} 24... g5 {[%clk
0:00:13.1]} 25. Rxc6 {[%clk 0:00:20.5]} 25... Rxc6 {[%clk 0:00:12.5]} 0-1

[Event "*** SCC Grand Prix: Titled Tuesday Blitz"]
[Site "Chess.com"]
[Date "2020.07.07"]
[Round "2"]
[White "DenisQ"]
[Black "Forantes"]
[Result "1-0"]
[WhiteElo "2646"]
[BlackElo "2327"]
[TimeControl "180+1"]
[EndTime "10:17:50 PDT"]
[Termination "DenisQ won by resignation"]

1. Nf3 {[%clk 0:03:00.9]} 1... Nf6 {[%clk 0:02:59.2]} 2. c4 {[%clk 0:03:00.1]}
2... g6 {[%clk 0:02:56.1]} 3. g3 {[%clk 0:02:59.3]} 3... Bg7 {[%clk 0:02:55.9]}
4. Bg2 {[%clk 0:02:59.9]} 4... O-O {[%clk 0:02:55.6]} 5. O-O {[%clk 0:03:00.5]}
5... d5 {[%clk 0:02:55.8]} 6. cxd5 {[%clk 0:02:58.4]} 6... Nxd5 {[%clk
0:02:56.7]} 7. Nc3 {[%clk 0:02:58.1]} 7... Nb6 {[%clk 0:02:56.6]} 8. d4 {[%clk
0:02:53]} 8... Nc6 {[%clk 0:02:56.1]} 9. e3 {[%clk 0:02:52.3]} 9... Re8 {[%clk
0:02:54.7]} 10. Re1 {[%clk 0:02:47.3]} 10... a5 {[%clk 0:02:54.4]} 11. d5 {[%clk
0:02:43.3]} 11... Nb4 {[%clk 0:02:53.1]} 12. e4 {[%clk 0:02:42.8]} 12... e6
{[%clk 0:02:45.6]} 13. a3 {[%clk 0:02:41.8]} 13... Na6 {[%clk 0:02:45.6]} 14.
Bg5 {[%clk 0:02:39]} 14... Qd7 {[%clk 0:02:39.7]} 15. Bh3 {[%clk 0:02:21.3]}
15... Nc5 {[%clk 0:02:22.7]} 16. Be3 {[%clk 0:02:12.9]} 16... Bxc3 {[%clk
0:02:10.8]} 17. bxc3 {[%clk 0:02:11]} 17... Nxe4 {[%clk 0:02:11.2]} 18. Bxb6
{[%clk 0:02:09.1]} 18... Nxc3 {[%clk 0:02:01]} 19. Qc1 {[%clk 0:02:04]} 19...
Nxd5 {[%clk 0:01:30.8]} 20. Bd4 {[%clk 0:02:02.3]} 20... Qd6 {[%clk 0:01:21.9]}
21. Qh6 {[%clk 0:01:54.7]} 21... Qf8 {[%clk 0:01:20.6]} 22. Qh4 {[%clk
0:01:50.9]} 22... c5 {[%clk 0:01:10]} 23. Bb2 {[%clk 0:01:45]} 23... b5 {[%clk
0:00:52.1]} 24. Ng5 {[%clk 0:01:38.6]} 24... h5 {[%clk 0:00:51.8]} 25. Rad1
{[%clk 0:01:27.7]} 25... Bb7 {[%clk 0:00:41.8]} 26. Nxe6 {[%clk 0:01:10.5]}
26... fxe6 {[%clk 0:00:40.6]} 27. Bxe6+ {[%clk 0:01:11.1]} 27... Rxe6 {[%clk
0:00:40.8]} 28. Rxe6 {[%clk 0:01:11.7]} 28... Kh7 {[%clk 0:00:21.3]} 29. Qe4
{[%clk 0:01:06.8]} 29... Qf7 {[%clk 0:00:05.5]} 30. Rxd5 {[%clk 0:01:04.6]}
30... Bxd5 {[%clk 0:00:05.1]} 31. Qxd5 {[%clk 0:01:05.2]} 31... Re8 {[%clk
0:00:05.3]} 32. Qe5 {[%clk 0:00:57.6]} 32... Rd8 {[%clk 0:00:04.8]} 33. Re7
{[%clk 0:00:56.7]} 33... Rd1+ {[%clk 0:00:03.8]} 34. Kg2 {[%clk 0:00:56.3]} 1-0

[Event "*** SCC Grand Prix: Titled Tuesday Blitz"]
[Site "Chess.com"]
[Date "2020.07.07"]
[Round "2"]
[White "FMKonstantin_Twitch"]
[Black "ChessWarrior7197"]
[Result "0-1"]
[WhiteElo "2562"]
[BlackElo "2878"]
[TimeControl "180+1"]
[EndTime "10:17:52 PDT"]
[Termination "ChessWarrior7197 won by resignation"]

1. e4 {[%clk 0:02:57.7]} 1... c5 {[%clk 0:02:59.3]} 2. Nf3 {[%clk 0:02:54]} 2...
d6 {[%clk 0:02:59.8]} 3. d4 {[%clk 0:02:53.2]} 3... cxd4 {[%clk 0:03:00.7]} 4.
Nxd4 {[%clk 0:02:53.4]} 4... Nf6 {[%clk 0:03:00.6]} 5. Nc3 {[%clk 0:02:53.5]}
5... a6 {[%clk 0:03:01]} 6. Bg5 {[%clk 0:02:51.3]} 6... e6 {[%clk 0:03:01.2]} 7.
f4 {[%clk 0:02:50.8]} 7... h6 {[%clk 0:03:01.2]} 8. Bh4 {[%clk 0:02:50.5]} 8...
Be7 {[%clk 0:03:01.3]} 9. Qf3 {[%clk 0:02:49.2]} 9... Nbd7 {[%clk 0:03:01.6]}
10. O-O-O {[%clk 0:02:48.3]} 10... Qc7 {[%clk 0:03:02.1]} 11. g4 {[%clk
0:02:31.8]} 11... b5 {[%clk 0:03:01.7]} 12. a3 {[%clk 0:02:31.1]} 12... Bb7
{[%clk 0:03:01.4]} 13. Rg1 {[%clk 0:02:30.3]} 13... Rc8 {[%clk 0:03:00.9]} 14.
Bf2 {[%clk 0:02:28.2]} 14... Nc5 {[%clk 0:03:00.2]} 15. Bd3 {[%clk 0:02:18.4]}
15... d5 {[%clk 0:03:00.5]} 16. e5 {[%clk 0:02:16]} 16... Nfe4 {[%clk
0:03:00.8]} 17. Bxe4 {[%clk 0:02:16.5]} 17... Nxe4 {[%clk 0:03:00.1]} 18. Nxe4
{[%clk 0:02:15.3]} 18... dxe4 {[%clk 0:03:01]} 19. Qe3 {[%clk 0:02:15.8]} 19...
Bd5 {[%clk 0:03:01.2]} 20. Kb1 {[%clk 0:02:14.8]} 20... Qc4 {[%clk 0:03:00.3]}
21. b3 {[%clk 0:02:08]} 21... Qc5 {[%clk 0:03:00.4]} 22. b4 {[%clk 0:02:06.1]}
22... Qc4 {[%clk 0:02:56.7]} 23. Qb3 {[%clk 0:02:05.3]} 23... Qc7 {[%clk
0:02:56.2]} 24. Qb2 {[%clk 0:02:00.8]} 24... h5 {[%clk 0:02:45.6]} 25. f5 {[%clk
0:01:59.1]} 25... hxg4 {[%clk 0:02:44]} 26. Bg3 {[%clk 0:01:55.3]} 26... Qc4
{[%clk 0:02:41.8]} 27. fxe6 {[%clk 0:01:51.8]} 27... fxe6 {[%clk 0:02:42]} 28.
Nb3 {[%clk 0:01:40.1]} 28... Qc3 {[%clk 0:02:36.4]} 29. Qxc3 {[%clk 0:01:35]}
29... Rxc3 {[%clk 0:02:37.3]} 30. Kb2 {[%clk 0:01:35.8]} 30... Rf3 {[%clk
0:02:30.9]} 31. Nd4 {[%clk 0:01:33.8]} 31... g5 {[%clk 0:02:30.2]} 32. Rge1
{[%clk 0:01:30.3]} 32... Bf8 {[%clk 0:02:24.1]} 33. Ne2 {[%clk 0:01:28.7]} 33...
Bg7 {[%clk 0:02:21.1]} 34. Nc3 {[%clk 0:01:21.8]} 34... Rxg3 {[%clk 0:02:05.7]}
35. Nxd5 {[%clk 0:01:20.8]} 35... Bxe5+ {[%clk 0:02:06.3]} 36. Ka2 {[%clk
0:01:20.8]} 36... Rxh2 {[%clk 0:02:02.4]} 37. Rxe4 {[%clk 0:01:18.6]} 37... Rhg2
{[%clk 0:01:53.5]} 38. Rxe5 {[%clk 0:01:15.1]} 38... Rxc2+ {[%clk 0:01:52.7]}
39. Kb1 {[%clk 0:01:14.1]} 39... Rgg2 {[%clk 0:01:52.6]} 40. Rxe6+ {[%clk
0:01:13.1]} 40... Kf7 {[%clk 0:01:44.3]} 41. Re7+ {[%clk 0:01:10.7]} 41... Kg6
{[%clk 0:01:44.4]} 42. Rc7 {[%clk 0:01:08.5]} 42... Rxc7 {[%clk 0:01:42.6]} 43.
Nxc7 {[%clk 0:01:07]} 43... g3 {[%clk 0:01:43.5]} 44. Nd5 {[%clk 0:01:04]} 44...
Rh2 {[%clk 0:01:36.4]} 45. Ne3 {[%clk 0:00:54.3]} 45... Re2 {[%clk 0:01:36.2]}
46. Ng4 {[%clk 0:00:27]} 46... Kf5 {[%clk 0:01:32.5]} 47. Nh6+ {[%clk 0:00:27]}
47... Kf4 {[%clk 0:01:33]} 48. Rf1+ {[%clk 0:00:15.3]} 48... Rf2 {[%clk
0:01:32.3]} 49. Rc1 {[%clk 0:00:10.9]} 49... g2 {[%clk 0:01:31.8]} 0-1

[Event "*** SCC Grand Prix: Titled Tuesday Blitz"]
[Site "Chess.com"]
[Date "2020.07.07"]
[Round "2"]
[White "dretch"]
[Black "Benjoneliere44"]
[Result "1-0"]
[WhiteElo "2804"]
[BlackElo "2526"]
[TimeControl "180+1"]
[EndTime "10:17:53 PDT"]
[Termination "dretch won by resignation"]

1. d4 {[%clk 0:02:58.4]} 1... d6 {[%clk 0:02:58]} 2. Nf3 {[%clk 0:02:58]} 2...
f5 {[%clk 0:02:57.2]} 3. g3 {[%clk 0:02:55.7]} 3... Nf6 {[%clk 0:02:57.6]} 4.
Bg2 {[%clk 0:02:56.1]} 4... g6 {[%clk 0:02:57.9]} 5. O-O {[%clk 0:02:55.6]} 5...
Bg7 {[%clk 0:02:58.5]} 6. c4 {[%clk 0:02:56]} 6... O-O {[%clk 0:02:58.9]} 7. Nc3
{[%clk 0:02:56.6]} 7... c6 {[%clk 0:02:59.2]} 8. b4 {[%clk 0:02:57.1]} 8... Qe8
{[%clk 0:02:54.9]} 9. b5 {[%clk 0:02:46.1]} 9... h6 {[%clk 0:02:35]} 10. Rb1
{[%clk 0:02:39.7]} 10... g5 {[%clk 0:02:31]} 11. Ba3 {[%clk 0:02:19.5]} 11... a6
{[%clk 0:02:23.5]} 12. bxc6 {[%clk 0:02:18.6]} 12... Nxc6 {[%clk 0:02:18.1]} 13.
d5 {[%clk 0:02:08.4]} 13... Ne5 {[%clk 0:02:09.6]} 14. Nxe5 {[%clk 0:02:06.8]}
14... dxe5 {[%clk 0:02:10.5]} 15. d6 {[%clk 0:02:07.2]} 15... exd6 {[%clk
0:02:07.6]} 16. Bxd6 {[%clk 0:02:00.1]} 16... Rf7 {[%clk 0:02:07.8]} 17. Nd5
{[%clk 0:02:00.4]} 17... Nxd5 {[%clk 0:02:02.2]} 18. Bxd5 {[%clk 0:01:58.3]}
18... Be6 {[%clk 0:02:02.6]} 19. Rxb7 {[%clk 0:01:55.6]} 19... Rd8 {[%clk
0:01:57.8]} 20. Rxf7 {[%clk 0:01:36.1]} 20... Qxf7 {[%clk 0:01:56.6]} 21. Bxe6
{[%clk 0:01:14.9]} 21... Qxe6 {[%clk 0:01:57.5]} 22. c5 {[%clk 0:01:15.4]} 22...
Bf8 {[%clk 0:01:54.1]} 23. Qc2 {[%clk 0:00:58.1]} 23... Bxd6 {[%clk 0:01:52.8]}
24. cxd6 {[%clk 0:00:57.5]} 24... Rxd6 {[%clk 0:01:53.3]} 25. Rc1 {[%clk
0:00:55.4]} 25... Qd7 {[%clk 0:01:41.5]} 26. Kg2 {[%clk 0:00:40.2]} 26... g4
{[%clk 0:01:33.1]} 27. Qb3+ {[%clk 0:00:33.9]} 27... Kg7 {[%clk 0:01:31.4]} 28.
Rc5 {[%clk 0:00:31.1]} 28... Qe6 {[%clk 0:01:20.7]} 29. Qc3 {[%clk 0:00:17.4]}
29... Kf6 {[%clk 0:01:04.8]} 30. Qe3 {[%clk 0:00:17]} 30... f4 {[%clk
0:00:41.3]} 31. gxf4 {[%clk 0:00:16.7]} 31... e4 {[%clk 0:00:35.3]} 32. f5
{[%clk 0:00:15.4]} 1-0

[Event "*** SCC Grand Prix: Titled Tuesday Blitz"]
[Site "Chess.com"]
[Date "2020.07.07"]
[Round "2"]
[White "ChessLover0108"]
[Black "kimstevenyap"]
[Result "1-0"]
[WhiteElo "2709"]
[BlackElo "2486"]
[TimeControl "180+1"]
[EndTime "10:17:53 PDT"]
[Termination "ChessLover0108 won on time"]

1. Nf3 {[%clk 0:02:56.1]} 1... Nf6 {[%clk 0:00:56.5]} 2. d4 {[%clk 0:02:50.7]}
2... g6 {[%clk 0:00:56.3]} 3. c4 {[%clk 0:02:51.1]} 3... Bg7 {[%clk 0:00:53.8]}
4. Nc3 {[%clk 0:02:52]} 4... d5 {[%clk 0:00:52.8]} 5. Bg5 {[%clk 0:02:49.9]}
5... Ne4 {[%clk 0:00:51.1]} 6. Bf4 {[%clk 0:02:50.4]} 6... Nxc3 {[%clk
0:00:46.9]} 7. bxc3 {[%clk 0:02:51.3]} 7... c5 {[%clk 0:00:44.4]} 8. cxd5 {[%clk
0:02:44.9]} 8... Qxd5 {[%clk 0:00:43.6]} 9. e3 {[%clk 0:02:44.2]} 9... Nc6
{[%clk 0:00:39.4]} 10. Be2 {[%clk 0:02:38.8]} 10... O-O {[%clk 0:00:38.2]} 11.
O-O {[%clk 0:02:36.5]} 11... Bf5 {[%clk 0:00:34.7]} 12. Qa4 {[%clk 0:02:05.3]}
12... cxd4 {[%clk 0:00:23.3]} 13. cxd4 {[%clk 0:02:06.2]} 13... Qa5 {[%clk
0:00:18.7]} 14. Qb3 {[%clk 0:02:02.9]} 14... Be6 {[%clk 0:00:15.5]} 15. Qxb7
{[%clk 0:01:53.1]} 15... Bd5 {[%clk 0:00:15.2]} 16. Qb2 {[%clk 0:01:46.7]} 16...
Rfc8 {[%clk 0:00:09]} 17. Rfc1 {[%clk 0:01:42.5]} 17... Nb4 {[%clk 0:00:08]} 18.
a3 {[%clk 0:01:38.3]} 18... Nc6 {[%clk 0:00:04.8]} 19. Rc5 {[%clk 0:01:38.1]}
19... Qd8 {[%clk 0:00:02.2]} 20. Ba6 {[%clk 0:01:37.6]} 20... Bxf3 {[%clk
0:00:01.5]} 21. Bxc8 {[%clk 0:01:28.2]} 21... Rxc8 {[%clk 0:00:02.4]} 22. gxf3
{[%clk 0:01:27.9]} 22... Nxd4 {[%clk 0:00:03]} 23. Rxc8 {[%clk 0:01:27.7]} 23...
Nxf3+ {[%clk 0:00:03.1]} 24. Kh1 {[%clk 0:01:09.6]} 24... Qxc8 {[%clk 0:00:04]}
25. Rc1 {[%clk 0:01:07.8]} 25... Qa8 {[%clk 0:00:04]} 26. Qb8+ {[%clk
0:00:34.7]} 26... Qxb8 {[%clk 0:00:03.7]} 27. Bxb8 {[%clk 0:00:35.6]} 27... Bb2
{[%clk 0:00:02.5]} 28. Rc8+ {[%clk 0:00:36]} 28... Kg7 {[%clk 0:00:03]} 29. a4
{[%clk 0:00:36.5]} 1-0

[Event "*** SCC Grand Prix: Titled Tuesday Blitz"]
[Site "Chess.com"]
[Date "2020.07.07"]
[Round "2"]
[White "maximnovik"]
[Black "UKR_Master"]
[Result "1-0"]
[WhiteElo "2505"]
[BlackElo "2293"]
[TimeControl "180+1"]
[EndTime "10:17:53 PDT"]
[Termination "maximnovik won by resignation"]

1. d4 {[%clk 0:03:00.9]} 1... Nf6 {[%clk 0:02:59.2]} 2. Bg5 {[%clk 0:03:00]}
2... Ne4 {[%clk 0:02:58.6]} 3. Bh4 {[%clk 0:03:00.1]} 3... c5 {[%clk 0:02:55.6]}
4. f3 {[%clk 0:03:00.3]} 4... Qa5+ {[%clk 0:02:56.2]} 5. c3 {[%clk 0:02:59.8]}
5... Nf6 {[%clk 0:02:55.5]} 6. dxc5 {[%clk 0:02:59.1]} 6... Qxc5 {[%clk
0:02:55.3]} 7. e4 {[%clk 0:02:59.5]} 7... e6 {[%clk 0:02:54.1]} 8. Nd2 {[%clk
0:02:51.3]} 8... Be7 {[%clk 0:02:51.2]} 9. Nc4 {[%clk 0:02:50.2]} 9... b5 {[%clk
0:02:44.9]} 10. Bf2 {[%clk 0:02:48.8]} 10... Qc6 {[%clk 0:02:31.4]} 11. Na5
{[%clk 0:02:30.7]} 11... Qc7 {[%clk 0:02:24.1]} 12. Nb3 {[%clk 0:02:30.5]} 12...
a6 {[%clk 0:02:20.1]} 13. Qd2 {[%clk 0:02:06.7]} 13... Bb7 {[%clk 0:02:14.7]}
14. O-O-O {[%clk 0:02:04.2]} 14... Nc6 {[%clk 0:01:50.7]} 15. Kb1 {[%clk
0:02:03.3]} 15... Rc8 {[%clk 0:01:44.9]} 16. g4 {[%clk 0:01:53.2]} 16... d6
{[%clk 0:01:41.9]} 17. h4 {[%clk 0:01:50.9]} 17... Ne5 {[%clk 0:01:40.7]} 18.
Rh3 {[%clk 0:01:33.6]} 18... Nfd7 {[%clk 0:01:25.5]} 19. g5 {[%clk 0:01:23.2]}
19... Nb6 {[%clk 0:01:17.5]} 20. Bxb6 {[%clk 0:01:12.8]} 20... Qxb6 {[%clk
0:01:16.4]} 21. Qd4 {[%clk 0:00:42.5]} 21... Qc7 {[%clk 0:01:04.6]} 22. f4
{[%clk 0:00:38.7]} 22... Ng6 {[%clk 0:00:57.9]} 23. Qxg7 {[%clk 0:00:32.8]}
23... Bxe4+ {[%clk 0:00:57.5]} 24. Bd3 {[%clk 0:00:32.1]} 24... Kd7 {[%clk
0:00:25.2]} 25. Bxe4 {[%clk 0:00:30.6]} 25... Nxf4 {[%clk 0:00:25.4]} 26. Rf3
{[%clk 0:00:28.7]} 26... Ng6 {[%clk 0:00:19.2]} 27. Bxg6 {[%clk 0:00:25.2]}
27... fxg6 {[%clk 0:00:17.7]} 28. Rf7 {[%clk 0:00:24.8]} 28... Rce8 {[%clk
0:00:17.9]} 29. Nf3 {[%clk 0:00:24.9]} 29... Qc4 {[%clk 0:00:17.6]} 30. Ne5+
{[%clk 0:00:24.4]} 30... Kd8 {[%clk 0:00:17.4]} 31. Nxc4 {[%clk 0:00:24.4]} 1-0

[Event "*** SCC Grand Prix: Titled Tuesday Blitz"]
[Site "Chess.com"]
[Date "2020.07.07"]
[Round "2"]
[White "Brave_spirit12"]
[Black "Efremov_Vlad"]
[Result "1/2-1/2"]
[WhiteElo "2425"]
[BlackElo "2211"]
[TimeControl "180+1"]
[EndTime "10:17:53 PDT"]
[Termination "Game drawn by agreement"]

1. e4 {[%clk 0:03:00.9]} 1... c5 {[%clk 0:02:59.3]} 2. c3 {[%clk 0:03:00.6]}
2... d5 {[%clk 0:02:58]} 3. exd5 {[%clk 0:03:00.2]} 3... Qxd5 {[%clk 0:02:58.9]}
4. Nf3 {[%clk 0:02:59.5]} 4... Nf6 {[%clk 0:02:57.4]} 5. d4 {[%clk 0:02:58.3]}
5... e6 {[%clk 0:02:56.9]} 6. Be3 {[%clk 0:02:56.4]} 6... cxd4 {[%clk 0:02:55]}
7. Bxd4 {[%clk 0:02:56.1]} 7... Be7 {[%clk 0:02:53.1]} 8. Be2 {[%clk 0:02:55.5]}
8... Nc6 {[%clk 0:02:52.4]} 9. O-O {[%clk 0:02:54.2]} 9... Nxd4 {[%clk
0:02:51.9]} 10. Nxd4 {[%clk 0:02:54.1]} 10... O-O {[%clk 0:02:47.8]} 11. Bf3
{[%clk 0:02:52.9]} 11... Qd8 {[%clk 0:02:42.2]} 12. Nd2 {[%clk 0:02:52.3]} 12...
e5 {[%clk 0:02:39.1]} 13. N4b3 {[%clk 0:02:51.6]} 13... Qc7 {[%clk 0:02:13.1]}
14. Qe2 {[%clk 0:02:49.3]} 14... Bf5 {[%clk 0:02:08.3]} 15. Rfe1 {[%clk
0:02:44.7]} 15... Bd6 {[%clk 0:02:07.5]} 16. Rad1 {[%clk 0:02:43.5]} 16... Rad8
{[%clk 0:01:58.8]} 17. Ne4 {[%clk 0:02:42.8]} 17... Nxe4 {[%clk 0:01:52.5]} 18.
Bxe4 {[%clk 0:02:43.6]} 18... Be6 {[%clk 0:01:48.6]} 19. Bd5 {[%clk 0:02:15.6]}
19... Bxd5 {[%clk 0:01:28.4]} 20. Rxd5 {[%clk 0:02:14.6]} 20... f5 {[%clk
0:01:29.1]} 21. Red1 {[%clk 0:02:12.3]} 21... e4 {[%clk 0:01:27.9]} 22. h3
{[%clk 0:02:02.6]} 22... Rf6 {[%clk 0:01:23]} 23. c4 {[%clk 0:01:48.7]} 23...
Re8 {[%clk 0:01:14.1]} 24. Nd4 {[%clk 0:01:43.6]} 24... Bh2+ {[%clk 0:00:37.5]}
25. Kh1 {[%clk 0:01:41.9]} 25... f4 {[%clk 0:00:31]} 26. Nb5 {[%clk 0:01:29.5]}
26... Qb8 {[%clk 0:00:30.5]} 27. Nd6 {[%clk 0:00:54.8]} 27... Rxd6 {[%clk
0:00:12.8]} 28. Rxd6 {[%clk 0:00:54.9]} 28... f3 {[%clk 0:00:13.2]} 29. Qd2
{[%clk 0:00:55.1]} 29... Bxd6 {[%clk 0:00:11.4]} 30. Qxd6 {[%clk 0:00:49.2]}
30... Qxd6 {[%clk 0:00:11.4]} 31. Rxd6 {[%clk 0:00:49.6]} 31... e3 {[%clk
0:00:10.4]} 1/2-1/2

[Event "*** SCC Grand Prix: Titled Tuesday Blitz"]
[Site "Chess.com"]
[Date "2020.07.07"]
[Round "2"]
[White "Tashik"]
[Black "QueenOfTactics90"]
[Result "1/2-1/2"]
[WhiteElo "2368"]
[BlackElo "2025"]
[TimeControl "180+1"]
[EndTime "10:17:55 PDT"]
[Termination "Game drawn by repetition"]

1. c4 {[%clk 0:03:00.9]} 1... c5 {[%clk 0:02:59.4]} 2. Nf3 {[%clk 0:03:00.2]}
2... Nc6 {[%clk 0:02:59.5]} 3. d4 {[%clk 0:03:00.1]} 3... cxd4 {[%clk
0:02:58.3]} 4. Nxd4 {[%clk 0:03:01]} 4... g6 {[%clk 0:02:58.7]} 5. e4 {[%clk
0:03:00.2]} 5... Bg7 {[%clk 0:02:58.5]} 6. Be3 {[%clk 0:03:00.1]} 6... Nf6
{[%clk 0:02:56]} 7. Nc3 {[%clk 0:02:59.8]} 7... O-O {[%clk 0:02:55.8]} 8. Be2
{[%clk 0:02:59.4]} 8... d6 {[%clk 0:02:54.9]} 9. O-O {[%clk 0:02:59.2]} 9... Bd7
{[%clk 0:02:53.9]} 10. h3 {[%clk 0:02:59.7]} 10... Nxd4 {[%clk 0:02:53.8]} 11.
Bxd4 {[%clk 0:02:59.5]} 11... Bc6 {[%clk 0:02:54.5]} 12. Qc2 {[%clk 0:03:00.1]}
12... Nd7 {[%clk 0:02:51.2]} 13. Bxg7 {[%clk 0:02:58.5]} 13... Kxg7 {[%clk
0:02:50.9]} 14. b4 {[%clk 0:02:59.4]} 14... b6 {[%clk 0:02:39.5]} 15. Rad1
{[%clk 0:02:58.3]} 15... Rc8 {[%clk 0:02:36.3]} 16. Bg4 {[%clk 0:02:52.3]} 16...
Rc7 {[%clk 0:01:52.1]} 17. Bxd7 {[%clk 0:02:50.7]} 17... Rxd7 {[%clk 0:01:51.8]}
18. Qb2 {[%clk 0:02:35.7]} 18... e5 {[%clk 0:01:47.5]} 19. Rd2 {[%clk
0:02:30.7]} 19... f5 {[%clk 0:01:46.8]} 20. exf5 {[%clk 0:02:04.1]} 20... Rxf5
{[%clk 0:01:45.3]} 21. Nd5 {[%clk 0:01:58.7]} 21... Qg5 {[%clk 0:01:37.4]} 22.
f4 {[%clk 0:01:34]} 22... Qg3 {[%clk 0:01:13.4]} 23. Rf3 {[%clk 0:01:00]} 23...
Qe1+ {[%clk 0:01:10.7]} 24. Kh2 {[%clk 0:01:00.6]} 24... Bxd5 {[%clk 0:01:09.7]}
25. Rxd5 {[%clk 0:00:58.7]} 25... Kh6 {[%clk 0:00:45.4]} 26. c5 {[%clk
0:00:52.2]} 26... Rxf4 {[%clk 0:00:44.6]} 27. Rxf4 {[%clk 0:00:46.6]} 27... exf4
{[%clk 0:00:44.5]} 28. Rxd6 {[%clk 0:00:09.3]} 28... Qg3+ {[%clk 0:00:42.9]} 29.
Kh1 {[%clk 0:00:09.6]} 29... Qe1+ {[%clk 0:00:42.1]} 30. Kh2 {[%clk 0:00:09.8]}
30... Qg3+ {[%clk 0:00:37.1]} 31. Kh1 {[%clk 0:00:09.6]} 31... Qe1+ {[%clk
0:00:33.9]} 32. Kh2 {[%clk 0:00:09.6]} 1/2-1/2